[Event "56th Biel Festival Rapid 2023"]
[Site "Biel"]
[Date "2024.04.13"]
[Round "1.29"]
[White "Marinkovic, Zoran"]
[Black "Dittmar, Michael"]
[Result "*"]
[WhiteElo "2136"]
[BlackElo "1706"]
[PlyCount "34"]
[EventDate "2023.07.16"]
[EventType "swiss"]
[EventCountry "SUI"]
[TimeControl "900+5"]

1. e4 {[%emt 0:00:20]} e6 {[%emt 0:00:01]} 2. d4 {[%emt 0:00:03]} d5 {[%emt 0:00:02]} 3. e5 {[%emt 0:00:18]} Bd7 {[%emt 0:00:01]} 4. Bd3 {[%emt 0:00:12]} a6 {[%emt 0:00:02]} 5. Ne2 {[%emt 0:00:18]} Bb5 {[%emt 0:00:02]} 6. Nbc3 {[%emt 0:00:09]} Bxd3 {[%emt 0:00:03]} 7. Qxd3 {[%emt 0:00:09]} c5 {[%emt 0:00:04]} 8. O-O {[%emt 0:00:11]} Nc6 {[%emt 0:00:03]} 9. Be3 {[%emt 0:00:49]} cxd4 {[%emt 0:00:13]} 10. Bxd4 {[%emt 0:00:03]} Nge7 {[%emt 0:00:12]} 11. Ng3 {[%emt 0:00:43]} Qc7 {[%emt 0:00:22]} 12. Rae1 {[%emt 0:00:27]} Ng6 {[%emt 0:00:44]} 13. Kh1 {[%emt 0:00:23]} O-O-O {[%emt 0:00:41]} 14. f4 {[%emt 0:00:58]} Nge7 {[%emt 0:00:36]} 15. f5 {[%emt 0:00:16]} Nxd4 {[%emt 0:01:10]} 16. Qxd4 {[%emt 0:00:04]} Nc6 {[%emt 0:00:01]} 17. Qf4 {[%emt 0:00:32]} Bb4 {[%emt 0:01:00]} *

[Event "56th Biel Festival Rapid 2023"]
[Site "Biel"]
[Date "2024.04.13"]
[Round "1.31"]
[White "Matta, Vinay Kumar"]
[Black "Markus, David"]
[Result "*"]
[WhiteElo "2111"]
[BlackElo "1384"]
[PlyCount "33"]
[EventDate "2023.07.16"]
[EventType "swiss"]
[EventCountry "SUI"]
[TimeControl "900+5"]

1. e4 {[%emt 0:03:41]} c5 {[%emt 0:00:01]} 2. Nf3 {[%emt 0:00:03]} e6 {[%emt 0:00:01]} 3. d4 {[%emt 0:00:02]} cxd4 {[%emt 0:00:02]} 4. Nxd4 {[%emt 0:00:02]} a6 {[%emt 0:00:03]} 5. Bd3 {[%emt 0:00:02]} Nf6 {[%emt 0:00:02]} 6. Nc3 {[%emt 0:00:03]} Qc7 {[%emt 0:00:03]} 7. Qe2 {[%emt 0:00:03]} Nc6 {[%emt 0:00:20]} 8. Nxc6 {[%emt 0:00:10]} bxc6 {[%emt 0:00:26]} 9. O-O {[%emt 0:00:11]} Be7 {[%emt 0:00:33]} 10. Bg5 {[%emt 0:00:11]} h6 {[%emt 0:00:33]} 11. Bh4 {[%emt 0:00:05]} Bb7 {[%emt 0:00:35]} 12. e5 {[%emt 0:00:37]} Nd5 {[%emt 0:00:12]} 13. Bxe7 {[%emt 0:00:08]} Kxe7 {[%emt 0:00:36]} 14. Nxd5+ {[%emt 0:00:19]} cxd5 {[%emt 0:00:02]} 15. f4 {[%emt 0:00:06]} d6 {[%emt 0:00:35]} 16. Rae1 {[%emt 0:00:08]} g6 {[%emt 0:01:41]} 17. Qg4 {[%emt 0:00:31]} *

[Event "56th Biel Festival Rapid 2023"]
[Site "Biel"]
[Date "2024.04.13"]
[Round "1.32"]
[White "Tkhoruk, Roman"]
[Black "Schweizer, Simon"]
[Result "*"]
[WhiteElo "1803"]
[BlackElo "2123"]
[PlyCount "41"]
[EventDate "2023.07.16"]
[EventType "swiss"]
[EventCountry "SUI"]
[TimeControl "900+5"]

1. d4 {[%emt 0:00:09]} Nf6 {[%emt 0:00:10]} 2. Bg5 {[%emt 0:00:01]} d5 {[%emt 0:00:03]} 3. Bxf6 {[%emt 0:00:03]} gxf6 {[%emt 0:00:02]} 4. Nf3 {[%emt 0:00:03]} Bg7 {[%emt 0:00:03]} 5. e3 {[%emt 0:00:02]} e5 {[%emt 0:00:15]} 6. c4 {[%emt 0:00:18]} dxc4 {[%emt 0:00:31]} 7. Bxc4 {[%emt 0:00:03]} O-O {[%emt 0:00:06]} 8. Nc3 {[%emt 0:00:12]} c6 {[%emt 0:00:11]} 9. O-O {[%emt 0:00:05]} Nd7 {[%emt 0:00:18]} 10. h3 {[%emt 0:00:14]} Qe7 {[%emt 0:00:36]} 11. Qc2 {[%emt 0:00:37]} Rd8 {[%emt 0:00:29]} 12. Rad1 {[%emt 0:00:10]} Nf8 {[%emt 0:00:30]} 13. dxe5 {[%emt 0:00:24]} fxe5 {[%emt 0:00:04]} 14. Rxd8 {[%emt 0:00:14]} Qxd8 {[%emt 0:00:02]} 15. Rd1 {[%emt 0:00:01]} Qe7 {[%emt 0:00:02]} 16. Rd2 {[%emt 0:00:48]} Be6 {[%emt 0:00:16]} 17. Bb3 {[%emt 0:00:45]} Kh8 {[%emt 0:00:30]} 18. Bxe6 {[%emt 0:00:21]} Qxe6 {[%emt 0:00:06]} 19. Ng5 {[%emt 0:00:52]} Qe7 {[%emt 0:00:09]} 20. Nf3 {[%emt 0:00:55]} Re8 {[%emt 0:00:13]} 21. Ne4 {[%emt 0:00:25]} *

[Event "56th Biel Festival Rapid 2023"]
[Site "Biel"]
[Date "2024.04.13"]
[Round "1.33"]
[White "Baghirov, Rasul"]
[Black "Cardoso Rodrigues, Michael"]
[Result "*"]
[WhiteElo "1992"]
[BlackElo "1652"]
[PlyCount "32"]
[EventDate "2023.07.16"]
[EventType "swiss"]
[EventCountry "SUI"]
[TimeControl "900+5"]

1. e4 {[%emt 0:00:18]} e5 {[%emt 0:00:07]} 2. Nf3 {[%emt 0:00:04]} Nf6 {[%emt 0:00:06]} 3. d3 {[%emt 0:01:06]} Nc6 {[%emt 0:00:18]} 4. Bg5 {[%emt 0:00:13]} Be7 {[%emt 0:00:28]} 5. Nc3 {[%emt 0:00:20]} O-O {[%emt 0:00:34]} 6. Be2 {[%emt 0:00:26]} h6 {[%emt 0:00:22]} 7. Bxf6 {[%emt 0:00:20]} Bxf6 {[%emt 0:00:04]} 8. O-O {[%emt 0:00:07]} d6 {[%emt 0:00:09]} 9. Nd5 {[%emt 0:00:09]} Be6 {[%emt 0:00:14]} 10. Ne3 {[%emt 0:00:15]} Qd7 {[%emt 0:00:35]} 11. c3 {[%emt 0:00:07]} Rfe8 {[%emt 0:01:47]} 12. Qc2 {[%emt 0:00:01]} g6 {[%emt 0:00:55]} 13. Rfd1 {[%emt 0:00:48]} Rad8 {[%emt 0:00:28]} 14. d4 {[%emt 0:00:35]} exd4 {[%emt 0:00:33]} 15. cxd4 {[%emt 0:00:03]} d5 {[%emt 0:00:11]} 16. e5 {[%emt 0:00:28]} Bg7 {[%emt 0:00:02]} *

[Event "56th Biel Festival Rapid 2023"]
[Site "Biel"]
[Date "2024.04.13"]
[Round "1.34"]
[White "Sai Mahati A"]
[Black "Vianin, Pascal"]
[Result "*"]
[WhiteElo "1669"]
[BlackElo "2051"]
[PlyCount "20"]
[EventDate "2023.07.16"]
[EventType "swiss"]
[EventCountry "SUI"]
[TimeControl "900+5"]

1. d4 {[%emt 0:04:08]} Nf6 {[%emt 0:00:03]} 2. c4 {[%emt 0:00:03]} Nc6 {[%emt 0:00:02]} 3. d5 {[%emt 0:00:09]} Ne5 {[%emt 0:00:03]} 4. e3 {[%emt 0:00:17]} e6 {[%emt 0:00:05]} 5. Nc3 {[%emt 0:00:16]} Bb4 {[%emt 0:00:31]} 6. Bd2 {[%emt 0:00:33]} O-O {[%emt 0:00:22]} 7. Nf3 {[%emt 0:00:21]} d6 {[%emt 0:01:43]} 8. Be2 {[%emt 0:00:36]} exd5 {[%emt 0:00:14]} 9. cxd5 {[%emt 0:00:15]} Re8 {[%emt 0:01:10]} 10. O-O {[%emt 0:00:25]} a5 {[%emt 0:00:15]} *

[Event "56th Biel Festival Rapid 2023"]
[Site "Biel"]
[Date "2024.04.13"]
[Round "1.35"]
[White "Richard, Emma"]
[Black "von Burg, Carl Alexander"]
[Result "*"]
[WhiteElo "2157"]
[BlackElo "1537"]
[PlyCount "29"]
[EventDate "2023.07.16"]
[EventType "swiss"]
[EventCountry "SUI"]
[TimeControl "900+5"]

1. e4 {[%emt 0:01:05]} c6 {[%emt 0:00:02]} 2. Nc3 {[%emt 0:00:02]} d5 {[%emt 0:00:03]} 3. Nf3 {[%emt 0:00:02]} dxe4 {[%emt 0:00:03]} 4. Nxe4 {[%emt 0:00:01]} Nf6 {[%emt 0:00:04]} 5. Nxf6+ {[%emt 0:00:03]} exf6 {[%emt 0:00:04]} 6. d4 {[%emt 0:00:04]} Bd6 {[%emt 0:00:03]} 7. Bd3 {[%emt 0:00:15]} O-O {[%emt 0:00:06]} 8. O-O {[%emt 0:00:03]} Bg4 {[%emt 0:00:12]} 9. h3 {[%emt 0:00:17]} Bh5 {[%emt 0:00:02]} 10. Be4 {[%emt 0:04:18]} Re8 {[%emt 0:01:12]} 11. Qd3 {[%emt 0:00:02]} Bg6 {[%emt 0:00:23]} 12. Bxg6 {[%emt 0:00:02]} hxg6 {[%emt 0:00:03]} 13. Bd2 {[%emt 0:00:12]} Nd7 {[%emt 0:00:43]} 14. Rfe1 {[%emt 0:00:29]} Qc7 {[%emt 0:00:26]} 15. c4 {[%emt 0:00:43]} *

[Event "56th Biel Festival Rapid 2023"]
[Site "Biel"]
[Date "2024.04.13"]
[Round "1.36"]
[White "Claude Jean-Pierre"]
[Black "Toenz, Arthur"]
[Result "*"]
[WhiteElo "1401"]
[BlackElo "2040"]
[PlyCount "40"]
[EventDate "2023.07.16"]
[EventType "swiss"]
[EventCountry "SUI"]
[TimeControl "900+5"]

1. d4 {[%emt 0:00:20]} Nf6 {[%emt 0:00:03]} 2. c4 {[%emt 0:00:03]} e6 {[%emt 0:00:02]} 3. Nc3 {[%emt 0:00:05]} Bb4 {[%emt 0:00:02]} 4. Bd2 {[%emt 0:00:08]} O-O {[%emt 0:00:07]} 5. Nf3 {[%emt 0:00:05]} d5 {[%emt 0:00:05]} 6. e3 {[%emt 0:00:11]} b6 {[%emt 0:00:02]} 7. cxd5 {[%emt 0:00:06]} exd5 {[%emt 0:00:07]} 8. Be2 {[%emt 0:00:11]} Re8 {[%emt 0:00:19]} 9. O-O {[%emt 0:00:06]} Bd6 {[%emt 0:00:09]} 10. h3 {[%emt 0:00:09]} Ba6 {[%emt 0:00:35]} 11. Bxa6 {[%emt 0:00:19]} Nxa6 {[%emt 0:00:03]} 12. a3 {[%emt 0:00:03]} c5 {[%emt 0:00:13]} 13. dxc5 {[%emt 0:00:14]} bxc5 {[%emt 0:00:05]} 14. Qc2 {[%emt 0:00:25]} Rb8 {[%emt 0:00:58]} 15. Rab1 {[%emt 0:00:14]} Qc7 {[%emt 0:00:44]} 16. Ne2 {[%emt 0:00:23]} Ne4 {[%emt 0:00:37]} 17. Be1 {[%emt 0:00:26]} Qb7 {[%emt 0:00:31]} 18. Nd2 {[%emt 0:01:00]} Nf6 {[%emt 0:00:14]} 19. Nf3 {[%emt 0:00:15]} h6 {[%emt 0:00:49]} 20. Qc1 {[%emt 0:00:45]} d4 {[%emt 0:00:30]} *

[Event "56th Biel Festival Rapid 2023"]
[Site "Biel"]
[Date "2024.04.13"]
[Round "1.37"]
[White "Haugner, Jan"]
[Black "Arpa, Enes Salih"]
[Result "*"]
[WhiteElo "2066"]
[BlackElo "1349"]
[PlyCount "32"]
[EventDate "2023.07.16"]
[EventType "swiss"]
[EventCountry "SUI"]
[TimeControl "900+5"]

1. e4 {[%emt 0:00:08]} e5 {[%emt 0:00:01]} 2. Nf3 {[%emt 0:00:01]} Nc6 {[%emt 0:00:01]} 3. Bb5 {[%emt 0:00:02]} a6 {[%emt 0:00:02]} 4. Bxc6 {[%emt 0:00:01]} dxc6 {[%emt 0:00:01]} 5. O-O {[%emt 0:00:02]} Bd6 {[%emt 0:00:03]} 6. d4 {[%emt 0:00:02]} Qe7 {[%emt 0:00:01]} 7. dxe5 {[%emt 0:00:07]} Bxe5 {[%emt 0:00:02]} 8. Nxe5 {[%emt 0:00:02]} Qxe5 {[%emt 0:00:02]} 9. Nc3 {[%emt 0:00:10]} Bd7 {[%emt 0:00:28]} 10. Be3 {[%emt 0:00:09]} Nf6 {[%emt 0:00:46]} 11. f3 {[%emt 0:00:19]} Rd8 {[%emt 0:00:44]} 12. Qe2 {[%emt 0:00:04]} O-O {[%emt 0:00:16]} 13. Rad1 {[%emt 0:00:06]} Be6 {[%emt 0:00:49]} 14. Qf2 {[%emt 0:01:33]} Rd7 {[%emt 0:03:18]} 15. Rxd7 {[%emt 0:00:13]} Nxd7 {[%emt 0:00:42]} 16. f4 {[%emt 0:00:47]} Qh5 {[%emt 0:00:55]} *

[Event "56th Biel Festival Rapid 2023"]
[Site "Biel"]
[Date "2024.04.13"]
[Round "1.38"]
[White "Trubini, Timon"]
[Black "Schweizer, Samuel"]
[Result "*"]
[WhiteElo "1587"]
[BlackElo "2084"]
[PlyCount "34"]
[EventDate "2023.07.16"]
[EventType "swiss"]
[EventCountry "SUI"]
[TimeControl "900+5"]

1. e4 {[%emt 0:00:06]} c5 {[%emt 0:00:07]} 2. Nf3 {[%emt 0:00:04]} e6 {[%emt 0:00:02]} 3. d4 {[%emt 0:00:05]} cxd4 {[%emt 0:00:02]} 4. Nxd4 {[%emt 0:00:02]} a6 {[%emt 0:00:01]} 5. Nc3 {[%emt 0:00:02]} Qc7 {[%emt 0:00:02]} 6. Be3 {[%emt 0:00:05]} Nf6 {[%emt 0:00:06]} 7. Qd2 {[%emt 0:00:03]} Bb4 {[%emt 0:00:00]} 8. Bd3 {[%emt 0:00:08]} Nc6 {[%emt 0:00:34]} 9. Nxc6 {[%emt 0:00:13]} bxc6 {[%emt 0:00:05]} 10. O-O {[%emt 0:00:04]} d5 {[%emt 0:00:04]} 11. exd5 {[%emt 0:00:41]} cxd5 {[%emt 0:00:03]} 12. Bd4 {[%emt 0:00:07]} h6 {[%emt 0:01:02]} 13. Qe2 {[%emt 0:00:17]} Be7 {[%emt 0:00:11]} 14. a3 {[%emt 0:00:54]} O-O {[%emt 0:00:10]} 15. Rfe1 {[%emt 0:00:10]} Bb7 {[%emt 0:00:38]} 16. Qe3 {[%emt 0:01:09]} Ng4 {[%emt 0:00:29]} 17. Qf3 {[%emt 0:00:33]} Qxh2+ {[%emt 0:00:10]} *

[Event "56th Biel Festival Rapid 2023"]
[Site "Biel"]
[Date "2024.04.13"]
[Round "1.39"]
[White "Prieb, Robert"]
[Black "Materia, Mario"]
[Result "*"]
[WhiteElo "2060"]
[BlackElo "1196"]
[PlyCount "36"]
[EventDate "2023.07.16"]
[EventType "swiss"]
[EventCountry "SUI"]
[TimeControl "900+5"]

1. d4 {[%emt 0:00:09]} d5 {[%emt 0:00:04]} 2. Nf3 {[%emt 0:00:03]} Nf6 {[%emt 0:00:09]} 3. c4 {[%emt 0:00:04]} e6 {[%emt 0:00:05]} 4. Nc3 {[%emt 0:00:04]} Bb4 {[%emt 0:00:02]} 5. Qa4+ {[%emt 0:00:05]} Nc6 {[%emt 0:00:02]} 6. e3 {[%emt 0:00:03]} O-O {[%emt 0:00:05]} 7. Bd2 {[%emt 0:00:04]} Bd7 {[%emt 0:00:06]} 8. Qc2 {[%emt 0:00:02]} Ne7 {[%emt 0:00:12]} 9. c5 {[%emt 0:01:23]} Nf5 {[%emt 0:00:28]} 10. Bd3 {[%emt 0:00:19]} Re8 {[%emt 0:00:04]} 11. O-O {[%emt 0:00:32]} Bxc3 {[%emt 0:00:28]} 12. Bxc3 {[%emt 0:00:10]} h6 {[%emt 0:01:24]} 13. Ne5 {[%emt 0:00:18]} c6 {[%emt 0:00:29]} 14. b4 {[%emt 0:00:18]} a6 {[%emt 0:00:04]} 15. a4 {[%emt 0:00:05]} Rc8 {[%emt 0:00:09]} 16. Rfb1 {[%emt 0:00:34]} Ra8 {[%emt 0:01:56]} 17. b5 {[%emt 0:00:16]} axb5 {[%emt 0:00:10]} 18. axb5 {[%emt 0:00:03]} Ne7 {[%emt 0:00:42]} *

[Event "56th Biel Festival Rapid 2023"]
[Site "Biel"]
[Date "2024.04.13"]
[Round "1.40"]
[White "Wilhelm, Marco"]
[Black "Mikavica, Dragoljub"]
[Result "*"]
[WhiteElo "1231"]
[BlackElo "2041"]
[PlyCount "48"]
[EventDate "2023.07.16"]
[EventType "swiss"]
[EventCountry "SUI"]
[TimeControl "900+5"]

1. d4 {[%emt 0:00:14]} g6 {[%emt 0:00:05]} 2. Bf4 {[%emt 0:00:05]} Bg7 {[%emt 0:00:01]} 3. e3 {[%emt 0:00:02]} d6 {[%emt 0:00:05]} 4. c3 {[%emt 0:00:02]} Nd7 {[%emt 0:00:00]} 5. Nd2 {[%emt 0:00:04]} Ngf6 {[%emt 0:00:02]} 6. h3 {[%emt 0:00:05]} a5 {[%emt 0:00:01]} 7. Bd3 {[%emt 0:00:04]} a4 {[%emt 0:00:00]} 8. a3 {[%emt 0:00:03]} b6 {[%emt 0:00:02]} 9. Ngf3 {[%emt 0:00:04]} Bb7 {[%emt 0:00:01]} 10. Qe2 {[%emt 0:00:04]} Nd5 {[%emt 0:00:09]} 11. Bg3 {[%emt 0:00:08]} O-O {[%emt 0:00:08]} 12. O-O {[%emt 0:00:03]} e5 {[%emt 0:00:10]} 13. dxe5 {[%emt 0:00:27]} dxe5 {[%emt 0:00:03]} 14. Bc2 {[%emt 0:00:12]} f5 {[%emt 0:00:17]} 15. Nc4 {[%emt 0:00:19]} Ba6 {[%emt 0:00:11]} 16. Rad1 {[%emt 0:00:45]} c6 {[%emt 0:00:24]} 17. Bb1 {[%emt 0:00:19]} Kh8 {[%emt 0:00:29]} 18. Ba2 {[%emt 0:00:19]} Qe7 {[%emt 0:00:31]} 19. Qc2 {[%emt 0:00:26]} b5 {[%emt 0:00:17]} 20. Ncd2 {[%emt 0:00:08]} b4 {[%emt 0:00:08]} 21. c4 {[%emt 0:00:56]} b3 {[%emt 0:00:09]} 22. Qc1 {[%emt 0:00:13]} bxa2 {[%emt 0:00:35]} 23. cxd5 {[%emt 0:00:52]} Nc5 {[%emt 0:01:36]} 24. Bh4 {[%emt 0:00:40]} Qd6 {[%emt 0:00:13]} *

[Event "56th Biel Festival Rapid 2023"]
[Site "Biel"]
[Date "2024.04.13"]
[Round "1.41"]
[White "Piazza, Carlo"]
[Black "Settegrana Miro"]
[Result "*"]
[WhiteElo "2106"]
[BlackElo "1301"]
[PlyCount "27"]
[EventDate "2023.07.16"]
[EventType "swiss"]
[EventCountry "SUI"]
[TimeControl "900+5"]

1. e4 {[%emt 0:00:09]} c6 {[%emt 0:00:02]} 2. d4 {[%emt 0:00:01]} d5 {[%emt 0:00:06]} 3. e5 {[%emt 0:00:06]} c5 {[%emt 0:00:00]} 4. dxc5 {[%emt 0:00:00]} e6 {[%emt 0:00:00]} 5. a3 {[%emt 0:00:00]} Bxc5 {[%emt 0:00:22]} 6. b4 {[%emt 0:00:01]} Bb6 {[%emt 0:00:01]} 7. Nf3 {[%emt 0:00:18]} Ne7 {[%emt 0:00:04]} 8. Nbd2 {[%emt 0:00:06]} O-O {[%emt 0:00:04]} 9. Nb3 {[%emt 0:00:02]} Ng6 {[%emt 0:00:12]} 10. Bd3 {[%emt 0:00:13]} Qc7 {[%emt 0:00:27]} 11. Bb2 {[%emt 0:01:26]} Nc6 {[%emt 0:00:51]} 12. Bxg6 {[%emt 0:01:54]} fxg6 {[%emt 0:00:07]} 13. O-O {[%emt 0:00:21]} Bd7 {[%emt 0:00:38]} 14. Qe2 {[%emt 0:02:24]} *

[Event "56th Biel Festival Rapid 2023"]
[Site "Biel"]
[Date "2024.04.13"]
[Round "1.42"]
[White "Begdullayeva, Diana"]
[Black "Meier, Peter"]
[Result "*"]
[WhiteElo "1194"]
[BlackElo "2033"]
[PlyCount "26"]
[EventDate "2023.07.16"]
[EventType "swiss"]
[EventCountry "SUI"]
[TimeControl "900+5"]

1. c4 {[%emt 0:00:11]} c6 {[%emt 0:00:02]} 2. Nc3 {[%emt 0:00:10]} d5 {[%emt 0:00:02]} 3. cxd5 {[%emt 0:00:25]} cxd5 {[%emt 0:00:03]} 4. d4 {[%emt 0:00:43]} Nc6 {[%emt 0:00:25]} 5. Nf3 {[%emt 0:00:05]} Nf6 {[%emt 0:00:12]} 6. Bf4 {[%emt 0:00:38]} a6 {[%emt 0:00:07]} 7. e3 {[%emt 0:00:27]} g6 {[%emt 0:00:18]} 8. Bd3 {[%emt 0:00:11]} Bg7 {[%emt 0:00:04]} 9. O-O {[%emt 0:01:11]} O-O {[%emt 0:00:05]} 10. Re1 {[%emt 0:00:30]} Bf5 {[%emt 0:01:24]} 11. e4 {[%emt 0:01:14]} dxe4 {[%emt 0:01:13]} 12. Bxe4 {[%emt 0:00:35]} Nxe4 {[%emt 0:00:39]} 13. Nxe4 {[%emt 0:00:53]} Bxe4 {[%emt 0:00:20]} *

[Event "56th Biel Festival Rapid 2023"]
[Site "Biel"]
[Date "2024.04.13"]
[Round "1.43"]
[White "Akshit Kumar J"]
[Black "Schaer, Bryan"]
[Result "*"]
[WhiteElo "2105"]
[BlackElo "1283"]
[PlyCount "22"]
[EventDate "2023.07.16"]
[EventType "swiss"]
[EventCountry "SUI"]
[TimeControl "900+5"]

1. e4 {[%emt 0:04:05]} e6 {[%emt 0:00:01]} 2. d4 {[%emt 0:00:02]} d5 {[%emt 0:00:02]} 3. Nd2 {[%emt 0:00:03]} Be7 {[%emt 0:00:03]} 4. Ngf3 {[%emt 0:00:05]} Nf6 {[%emt 0:00:02]} 5. e5 {[%emt 0:00:20]} Nfd7 {[%emt 0:00:02]} 6. Bd3 {[%emt 0:00:05]} c5 {[%emt 0:00:06]} 7. c3 {[%emt 0:01:10]} Nc6 {[%emt 0:00:04]} 8. O-O {[%emt 0:00:19]} Qb6 {[%emt 0:00:30]} 9. dxc5 {[%emt 0:00:57]} Bxc5 {[%emt 0:00:46]} 10. Qe2 {[%emt 0:00:09]} Qc7 {[%emt 0:01:26]} 11. Nb3 {[%emt 0:00:51]} Ncxe5 {[%emt 0:01:10]} *

[Event "56th Biel Festival Rapid 2023"]
[Site "Biel"]
[Date "2024.04.13"]
[Round "1.44"]
[White "Baghirov, Elmar"]
[Black "Rasovic, Dragan"]
[Result "*"]
[WhiteElo "1178"]
[BlackElo "2069"]
[PlyCount "30"]
[EventDate "2023.07.16"]
[EventType "swiss"]
[EventCountry "SUI"]
[TimeControl "900+5"]

1. e4 {[%emt 0:00:12]} c6 {[%emt 0:00:03]} 2. Nc3 {[%emt 0:00:41]} d5 {[%emt 0:00:03]} 3. d4 {[%emt 0:00:16]} dxe4 {[%emt 0:00:08]} 4. Nxe4 {[%emt 0:00:05]} Nd7 {[%emt 0:00:05]} 5. Nf3 {[%emt 0:00:10]} Ngf6 {[%emt 0:00:00]} 6. Nxf6+ {[%emt 0:00:14]} Nxf6 {[%emt 0:00:00]} 7. g3 {[%emt 0:00:22]} Bg4 {[%emt 0:00:25]} 8. Bg2 {[%emt 0:00:08]} e6 {[%emt 0:00:03]} 9. O-O {[%emt 0:00:05]} Be7 {[%emt 0:00:09]} 10. c3 {[%emt 0:00:47]} O-O {[%emt 0:00:03]} 11. Bf4 {[%emt 0:00:15]} Nd5 {[%emt 0:00:25]} 12. Qc1 {[%emt 0:00:53]} Nxf4 {[%emt 0:01:27]} 13. Qxf4 {[%emt 0:00:21]} Bf5 {[%emt 0:00:03]} 14. Rfe1 {[%emt 0:00:56]} Qb6 {[%emt 0:00:50]} 15. b3 {[%emt 0:00:45]} Rfd8 {[%emt 0:02:04]} *

[Event "56th Biel Festival Rapid 2023"]
[Site "Biel"]
[Date "2024.04.13"]
[Round "1.45"]
[White "Alic, Miran"]
[Black "Begdullayeva, Karina"]
[Result "*"]
[WhiteElo "2011"]
[BlackElo "1034"]
[PlyCount "33"]
[EventDate "2023.07.16"]
[EventType "swiss"]
[EventCountry "SUI"]
[TimeControl "900+5"]

1. d4 {[%emt 0:00:16]} d5 {[%emt 0:00:02]} 2. Nf3 {[%emt 0:00:01]} c5 {[%emt 0:00:07]} 3. c4 {[%emt 0:00:12]} e6 {[%emt 0:00:03]} 4. cxd5 {[%emt 0:00:12]} exd5 {[%emt 0:00:03]} 5. Nc3 {[%emt 0:00:17]} Nc6 {[%emt 0:00:08]} 6. e3 {[%emt 0:00:37]} g6 {[%emt 0:02:37]} 7. dxc5 {[%emt 0:01:04]} Bxc5 {[%emt 0:00:33]} 8. Qxd5 {[%emt 0:01:21]} Bb4 {[%emt 0:01:14]} 9. Qxd8+ {[%emt 0:00:22]} Nxd8 {[%emt 0:00:05]} 10. Bb5+ {[%emt 0:00:08]} Bd7 {[%emt 0:00:06]} 11. Bxd7+ {[%emt 0:00:03]} Kxd7 {[%emt 0:00:03]} 12. Bd2 {[%emt 0:00:15]} Nf6 {[%emt 0:00:12]} 13. O-O {[%emt 0:00:20]} h5 {[%emt 0:00:06]} 14. Rfd1 {[%emt 0:00:31]} Kc8 {[%emt 0:00:27]} 15. Rac1 {[%emt 0:00:15]} Nc6 {[%emt 0:00:11]} 16. a3 {[%emt 0:00:03]} Bd6 {[%emt 0:00:08]} 17. b4 {[%emt 0:00:10]} *

[Event "56th Biel Festival Rapid 2023"]
[Site "Biel"]
[Date "2024.04.13"]
[Round "1.46"]
[White "Creux François"]
[Black "Rivaud, Christophe"]
[Result "*"]
[WhiteElo "1753"]
[BlackElo "1955"]
[PlyCount "29"]
[EventDate "2023.07.16"]
[EventType "swiss"]
[EventCountry "SUI"]
[TimeControl "900+5"]

1. e4 {[%emt 0:00:16]} Nf6 {[%emt 0:00:02]} 2. e5 {[%emt 0:00:04]} Nd5 {[%emt 0:00:03]} 3. d4 {[%emt 0:00:06]} d6 {[%emt 0:00:08]} 4. c4 {[%emt 0:00:11]} Nb6 {[%emt 0:00:03]} 5. exd6 {[%emt 0:00:10]} exd6 {[%emt 0:00:04]} 6. Nc3 {[%emt 0:00:15]} Be7 {[%emt 0:00:05]} 7. Bd3 {[%emt 0:00:15]} Nc6 {[%emt 0:00:09]} 8. Nge2 {[%emt 0:00:29]} Bf6 {[%emt 0:00:29]} 9. Be3 {[%emt 0:00:13]} Bg4 {[%emt 0:00:06]} 10. a3 {[%emt 0:00:15]} Nxd4 {[%emt 0:01:21]} 11. Bxd4 {[%emt 0:00:20]} Bxd4 {[%emt 0:00:11]} 12. Qc2 {[%emt 0:00:21]} Bxc3+ {[%emt 0:01:44]} 13. Qxc3 {[%emt 0:00:39]} Bxe2 {[%emt 0:01:20]} 14. Bxe2 {[%emt 0:00:20]} O-O {[%emt 0:01:51]} 15. O-O {[%emt 0:00:03]} *

[Event "56th Biel Festival Rapid 2023"]
[Site "Biel"]
[Date "2024.04.13"]
[Round "1.47"]
[White "Wilhelm, Serge"]
[Black "Caduff Simon"]
[Result "*"]
[WhiteElo "1959"]
[BlackElo "1610"]
[PlyCount "31"]
[EventDate "2023.07.16"]
[EventType "swiss"]
[EventCountry "SUI"]
[TimeControl "900+5"]

1. d4 {[%emt 0:00:10]} d5 {[%emt 0:00:01]} 2. Bg5 {[%emt 0:00:02]} Nf6 {[%emt 0:00:16]} 3. e3 {[%emt 0:00:02]} Bf5 {[%emt 0:00:09]} 4. Nf3 {[%emt 0:00:22]} h6 {[%emt 0:00:17]} 5. Bh4 {[%emt 0:00:05]} g5 {[%emt 0:00:34]} 6. Bg3 {[%emt 0:00:03]} Nc6 {[%emt 0:00:20]} 7. h4 {[%emt 0:00:17]} g4 {[%emt 0:00:34]} 8. Ne5 {[%emt 0:00:04]} Nxe5 {[%emt 0:00:30]} 9. Bxe5 {[%emt 0:00:05]} Bg7 {[%emt 0:00:16]} 10. Be2 {[%emt 0:00:19]} Rg8 {[%emt 0:01:07]} 11. g3 {[%emt 0:00:36]} Nd7 {[%emt 0:00:57]} 12. Bxg7 {[%emt 0:00:05]} Rxg7 {[%emt 0:00:05]} 13. Nd2 {[%emt 0:00:17]} e6 {[%emt 0:00:25]} 14. O-O {[%emt 0:00:12]} c5 {[%emt 0:01:24]} 15. c4 {[%emt 0:01:23]} cxd4 {[%emt 0:01:00]} 16. cxd5 {[%emt 0:00:08]} *

[Event "56th Biel Festival Rapid 2023"]
[Site "Biel"]
[Date "2024.04.13"]
[Round "1.48"]
[White "Girardin Elias"]
[Black "Malli, Suvirr"]
[Result "*"]
[WhiteElo "1419"]
[BlackElo "2094"]
[PlyCount "39"]
[EventDate "2023.07.16"]
[EventType "swiss"]
[EventCountry "SUI"]
[TimeControl "900+5"]

1. b3 {[%emt 0:00:12]} e5 {[%emt 0:00:01]} 2. Bb2 {[%emt 0:00:01]} Nc6 {[%emt 0:00:01]} 3. e3 {[%emt 0:00:01]} d6 {[%emt 0:00:06]} 4. d4 {[%emt 0:00:24]} exd4 {[%emt 0:00:03]} 5. exd4 {[%emt 0:00:03]} d5 {[%emt 0:00:03]} 6. Nf3 {[%emt 0:00:05]} Nf6 {[%emt 0:00:02]} 7. Be2 {[%emt 0:00:09]} Be7 {[%emt 0:00:02]} 8. O-O {[%emt 0:00:03]} O-O {[%emt 0:00:03]} 9. Re1 {[%emt 0:00:07]} Ne4 {[%emt 0:00:01]} 10. Nbd2 {[%emt 0:00:18]} f5 {[%emt 0:00:07]} 11. c4 {[%emt 0:00:50]} Be6 {[%emt 0:00:09]} 12. cxd5 {[%emt 0:00:36]} Bxd5 {[%emt 0:00:02]} 13. Bb5 {[%emt 0:00:12]} Kh8 {[%emt 0:00:09]} 14. Bxc6 {[%emt 0:00:38]} bxc6 {[%emt 0:00:16]} 15. Ne5 {[%emt 0:00:22]} Bb4 {[%emt 0:00:05]} 16. Nxe4 {[%emt 0:01:13]} Bxe1 {[%emt 0:00:10]} 17. Nc5 {[%emt 0:00:22]} Qg5 {[%emt 0:02:02]} 18. Nf3 {[%emt 0:01:14]} Bxf3 {[%emt 0:00:56]} 19. Qxf3 {[%emt 0:00:02]} Qd2 {[%emt 0:00:28]} 20. Nd3 {[%emt 0:00:42]} *